{"text_format":"3","workbook":"xlsx","n_sheets":1,"sheets":["Prestiti libri biblioteca"],"not_rendered":{"defined_names":4},"read":"whole","date_system":"1900"}

{"sheet":"Prestiti libri biblioteca","index":0,"n_rows":9,"n_cols":8,"rows_kept":9,"merged":[[0,1,0,4],[0,5,0,6]]}
[null,"Registro dei prestiti di libri per biblioteca",{"$nulls":3},"GIORNI ALLA SCADENZA: ",null,10]
["Scaduto","STUDENTE","POSTA ELETTRONICA CONTATTO","TELEFONO CONTATTO","TITOLO DEL LIBRO","DATA PRESTITO","DATA RESTITUZIONE","GIORNI"]
[{"$f":"IFERROR(((Libri[[#This Row],[DATA PRESTITO]]+GiorniConsentiti)<TODAY())*(LEN(Libri[[#This Row],[DATA RESTITUZIONE]])=0)*(LEN(Libri[[#This Row],[DATA PRESTITO]])>0),0)","v":0},"Michela Castiglione","prova@example.com","123-4560","La casa nella prateria",{"$f":"DATE(YEAR(TODAY()),1,14)","v":"2018-01-14"},{"$f":"DATE(YEAR(TODAY()),1,21)","v":"2018-01-21"},{"$f":"IFERROR(IF(Libri[[#This Row],[DATA RESTITUZIONE]]=\"\",IF(Libri[[#This Row],[DATA PRESTITO]]<>\"\", TODAY()-Libri[[#This Row],[DATA PRESTITO]],\"\"),Libri[[#This Row],[DATA RESTITUZIONE]]-Libri[[#This Row],[DATA PRESTITO]]), \"\")","v":7}]
[{"$f":"IFERROR(((Libri[[#This Row],[DATA PRESTITO]]+GiorniConsentiti)<TODAY())*(LEN(Libri[[#This Row],[DATA RESTITUZIONE]])=0)*(LEN(Libri[[#This Row],[DATA PRESTITO]])>0),0)","v":0},"Diego Conticini","prova@example.com","123-4561","La tela di Carlotta",{"$f":"DATE(YEAR(TODAY()),2,15)","v":"2018-02-15"},{"$f":"DATE(YEAR(TODAY()),2,18)","v":"2018-02-18"},{"$f":"IFERROR(IF(Libri[[#This Row],[DATA RESTITUZIONE]]=\"\",IF(Libri[[#This Row],[DATA PRESTITO]]<>\"\", TODAY()-Libri[[#This Row],[DATA PRESTITO]],\"\"),Libri[[#This Row],[DATA RESTITUZIONE]]-Libri[[#This Row],[DATA PRESTITO]]), \"\")","v":3}]
[{"$f":"IFERROR(((Libri[[#This Row],[DATA PRESTITO]]+GiorniConsentiti)<TODAY())*(LEN(Libri[[#This Row],[DATA RESTITUZIONE]])=0)*(LEN(Libri[[#This Row],[DATA PRESTITO]])>0),0)","v":0},"Benito Dellucci","prova@example.com","123-4562","Il casello magico",{"$f":"DATE(YEAR(TODAY()),2,17)","v":"2018-02-17"},{"$f":"DATE(YEAR(TODAY()),2,22)","v":"2018-02-22"},{"$f":"IFERROR(IF(Libri[[#This Row],[DATA RESTITUZIONE]]=\"\",IF(Libri[[#This Row],[DATA PRESTITO]]<>\"\", TODAY()-Libri[[#This Row],[DATA PRESTITO]],\"\"),Libri[[#This Row],[DATA RESTITUZIONE]]-Libri[[#This Row],[DATA PRESTITO]]), \"\")","v":5}]
[{"$f":"IFERROR(((Libri[[#This Row],[DATA PRESTITO]]+GiorniConsentiti)<TODAY())*(LEN(Libri[[#This Row],[DATA RESTITUZIONE]])=0)*(LEN(Libri[[#This Row],[DATA PRESTITO]])>0),0)","v":0},"Rinaldo Iadanza","prova@example.com","123-4563","Mrs. Frisby and the Rats of Nimh",{"$f":"DATE(YEAR(TODAY()),2,17)","v":"2018-02-17"},{"$f":"DATE(YEAR(TODAY()),2,25)","v":"2018-02-25"},{"$f":"IFERROR(IF(Libri[[#This Row],[DATA RESTITUZIONE]]=\"\",IF(Libri[[#This Row],[DATA PRESTITO]]<>\"\", TODAY()-Libri[[#This Row],[DATA PRESTITO]],\"\"),Libri[[#This Row],[DATA RESTITUZIONE]]-Libri[[#This Row],[DATA PRESTITO]]), \"\")","v":8}]
[{"$f":"IFERROR(((Libri[[#This Row],[DATA PRESTITO]]+GiorniConsentiti)<TODAY())*(LEN(Libri[[#This Row],[DATA RESTITUZIONE]])=0)*(LEN(Libri[[#This Row],[DATA PRESTITO]])>0),0)","v":0},"Valeria Lo Duca","prova@example.com","123-4564","Matilde",{"$f":"DATE(YEAR(TODAY()),2,18)","v":"2018-02-18"},{"$f":"DATE(YEAR(TODAY()),2,28)","v":"2018-02-28"},{"$f":"IFERROR(IF(Libri[[#This Row],[DATA RESTITUZIONE]]=\"\",IF(Libri[[#This Row],[DATA PRESTITO]]<>\"\", TODAY()-Libri[[#This Row],[DATA PRESTITO]],\"\"),Libri[[#This Row],[DATA RESTITUZIONE]]-Libri[[#This Row],[DATA PRESTITO]]), \"\")","v":10}]
[{"$f":"IFERROR(((Libri[[#This Row],[DATA PRESTITO]]+GiorniConsentiti)<TODAY())*(LEN(Libri[[#This Row],[DATA RESTITUZIONE]])=0)*(LEN(Libri[[#This Row],[DATA PRESTITO]])>0),0)","v":1},"Gerardina Longo","prova@example.com","123-4565","Le cronache di Narnia",{"$f":"DATE(YEAR(TODAY()),1,23)","v":"2018-01-23"},null,{"$f":"IFERROR(IF(Libri[[#This Row],[DATA RESTITUZIONE]]=\"\",IF(Libri[[#This Row],[DATA PRESTITO]]<>\"\", TODAY()-Libri[[#This Row],[DATA PRESTITO]],\"\"),Libri[[#This Row],[DATA RESTITUZIONE]]-Libri[[#This Row],[DATA PRESTITO]]), \"\")","v":162}]
[{"$f":"IFERROR(((Libri[[#This Row],[DATA PRESTITO]]+GiorniConsentiti)<TODAY())*(LEN(Libri[[#This Row],[DATA RESTITUZIONE]])=0)*(LEN(Libri[[#This Row],[DATA PRESTITO]])>0),0)","v":0},"Fabiola Siciliano","prova@example.com","123-4566","The Witch of Blackbird Pond",{"$f":"TODAY()","v":"2018-07-04"},null,{"$f":"IFERROR(IF(Libri[[#This Row],[DATA RESTITUZIONE]]=\"\",IF(Libri[[#This Row],[DATA PRESTITO]]<>\"\", TODAY()-Libri[[#This Row],[DATA PRESTITO]],\"\"),Libri[[#This Row],[DATA RESTITUZIONE]]-Libri[[#This Row],[DATA PRESTITO]]), \"\")","v":0}]